fUSD/lending_fUSD_20250826
["ID","MTS","AMOUNT","RATE_DAILY","PERIOD"]
[381523527,1756247491783,-514.74,0.00027945,5]
[381523528,1756247491793,-907.27,0.00027945,5]
[381523529,1756247491803,-1176.11,0.00027945,5]
[381523530,1756247491812,-821.69,0.00027945,5]
[381523531,1756247491821,-400.0,0.00027945,5]
[381523532,1756247491831,-400.0,0.00027945,5]
[381523533,1756247491840,-994.3,0.00027945,5]
[381523534,1756247491850,-483.43,0.00027945,5]
[381523535,1756247491859,-1279.85,0.00027945,5]
[381523536,1756247491868,-907.1,0.00027945,5]
[381523537,1756247491878,-493.1,0.00027945,5]
[381523538,1756247491887,-842.09,0.00027945,5]
[381523539,1756247491896,-562.03,0.00027945,5]
[381523540,1756247491906,-495.63,0.00027945,5]
[381523541,1756247491916,-400.0,0.00027945,5]
[381523542,1756247491926,-547.13,0.00027945,5]
[381523543,1756247491935,-648.7,0.00027945,5]
[381523544,1756247491945,-400.0,0.00027945,5]
[381523545,1756247491954,-400.0,0.00027945,5]
[381523546,1756247491963,-711.41,0.00027945,5]
[381523547,1756247491973,-503.59,0.00027945,5]
[381523548,1756247491981,-1012.41,0.00027945,5]
[381523549,1756247491990,-400.0,0.00027945,5]
[381523550,1756247491999,-743.91,0.00027945,5]
[381523551,1756247492009,-400.0,0.00027945,5]
[381523552,1756247492019,-400.0,0.00027945,5]
[381523553,1756247492028,-400.0,0.00027945,5]
[381523554,1756247492037,-1063.15,0.00027945,5]
[381523555,1756247492047,-400.0,0.00027945,5]
[381523556,1756247492056,-400.0,0.00027945,5]
[381523557,1756247492065,-843.41,0.00027945,5]
[381523558,1756247492075,-1067.87,0.00027945,5]
[381523559,1756247492085,-400.0,0.00027945,5]
[381523560,1756247492094,-533.69,0.00027945,5]
[381523561,1756247492103,-950.08,0.00027945,5]
[381523562,1756247492113,-400.0,0.00027945,5]
[381523563,1756247492122,-400.0,0.00027945,5]
[381523564,1756247492131,-983.86,0.00027945,5]
[381523565,1756247492140,-400.0,0.00027945,5]
[381523566,1756247492149,-404.95,0.00027945,5]
[381523567,1756247492159,-526.76,0.00027945,5]
[381523568,1756247492169,-400.0,0.00027945,5]
[381523569,1756247492178,-791.8,0.00027945,5]
[381523570,1756247492187,-400.0,0.00027945,5]
[381523571,1756247492196,-400.0,0.00027945,5]
[381523572,1756247492206,-718.05,0.00027945,5]
[381523573,1756247492215,-644.45,0.00027945,5]
[381523574,1756247492224,-673.06,0.00027945,5]
[381523575,1756247492233,-810.36,0.00027945,5]
[381523576,1756247492243,-400.0,0.00027945,5]
[381523577,1756247492252,-571.52,0.00027945,5]
[381523578,1756247492262,-400.0,0.00027945,5]
[381523579,1756247492272,-546.42,0.00027945,5]
[381523580,1756247492281,-1094.58,0.00027945,5]
[381523581,1756247492291,-400.0,0.00027945,5]
[381523582,1756247492300,-400.0,0.00027945,5]
[381523583,1756247492309,-881.38,0.00027945,5]
[381523584,1756247492319,-546.22,0.00027945,5]
[381523585,1756247492328,-400.0,0.00027945,5]
[381523586,1756247492337,-559.21,0.00027945,5]
[381523587,1756247492348,-737.5,0.00027945,5]
[381523588,1756247492357,-898.14,0.00027945,5]
[381523589,1756247492366,-1892.48,0.00027945,5]
[381523590,1756247492375,-1492.28,0.00027945,5]
[381523591,1756247492385,-1159.34,0.00027945,5]
[381523592,1756247492395,-400.0,0.00027945,5]
[381523593,1756247492405,-509.03,0.00027945,5]
[381523594,1756247492415,-967.5,0.00027945,5]
[381523595,1756247492427,-476.0,0.00027945,5]
[381523596,1756247492436,-937.14,0.00027945,5]
[381523597,1756247492446,-400.0,0.00027945,5]
[381523598,1756247492457,-1299.22,0.00027945,5]
[381523599,1756247492466,-1095.83,0.00027945,5]
[381523600,1756247492476,-1180.68,0.00027945,5]
[381523601,1756247492485,-3372.03,0.00027945,5]
[381523602,1756247492494,-400.0,0.00027945,5]
[381523603,1756247492505,-521.78,0.00027945,5]
[381523604,1756247492514,-400.0,0.00027945,5]
[381523605,1756247492524,-814.87,0.00027945,5]
[381523606,1756247492534,-510.48,0.00027945,5]
[381523607,1756247492544,-674.43,0.00027945,5]
[381523608,1756247492554,-517.35,0.00027945,5]
[381523609,1756247492564,-619.31,0.00027945,5]
[381523610,1756247492573,-400.0,0.00027945,5]
[381523611,1756247492582,-864.41,0.00027945,5]
[381523612,1756247492592,-1156.15,0.00027945,5]
[381523613,1756247492602,-614.55,0.00027945,5]
[381523614,1756247492614,-766.76,0.00027945,5]
[381523615,1756247492623,-963.17,0.00027945,5]
[381523616,1756247492633,-474.02,0.00027945,5]
[381523617,1756247492643,-774.57,0.00027945,5]
[381523618,1756247492653,-400.0,0.00027945,5]
[381523619,1756247492663,-522.27,0.00027945,5]
[381523620,1756247492673,-400.0,0.00027945,5]
[381523621,1756247492682,-542.92,0.00027945,5]
[381523622,1756247492691,-527.27,0.00027945,5]
[381523623,1756247492785,-739.7,0.00027945,5]
[381523624,1756247492794,-400.0,0.00027945,5]
[381523625,1756247492803,-400.0,0.00027945,5]
[381523626,1756247492812,-752.88,0.00027945,5]
[381523627,1756247492821,-526.06,0.00027945,5]
[381523628,1756247492830,-400.0,0.00027945,5]
[381523629,1756247492839,-929.38,0.00027945,5]
[381523630,1756247492848,-479.27,0.00027945,5]
[381523631,1756247492857,-400.0,0.00027945,5]
[381523632,1756247492866,-400.0,0.00027945,5]
[381523633,1756247492875,-400.0,0.00027945,5]
[381523634,1756247492884,-400.0,0.00027945,5]
[381523635,1756247492893,-400.0,0.00027945,5]
[381523636,1756247492902,-1111.58,0.00027945,5]
[381523637,1756247492911,-471.5,0.00027945,5]
[381523638,1756247492920,-400.0,0.00027945,5]
[381523639,1756247492930,-698.27,0.00027945,5]
[381523640,1756247492939,-1226.36,0.00027945,5]
[381523641,1756247492948,-400.0,0.00027945,5]
[381523642,1756247492957,-400.0,0.00027945,5]
[381523643,1756247492967,-821.23,0.00027945,5]
[381523644,1756247492976,-979.87,0.00027945,5]
[381523645,1756247492985,-400.0,0.00027945,5]
[381523646,1756247492994,-675.68,0.00027945,5]
[381523647,1756247493003,-438.41,0.00027945,5]
[381523648,1756247493012,-793.81,0.00027945,5]
[381523649,1756247493022,-400.0,0.00027945,5]
[381523650,1756247493032,-476.81,0.00027945,5]
[381523651,1756247493042,-435.15,0.00027945,5]
[381523652,1756247493051,-400.0,0.00027945,5]
[381523653,1756247493061,-400.0,0.00027945,5]
[381523654,1756247493071,-400.0,0.00027945,5]
[381523655,1756247493081,-1000.0,0.00027945,5]
[381523656,1756247493091,-543.35,0.00027945,5]
[381523657,1756247493101,-689.43,0.00027945,5]
[381523658,1756247493111,-1676.47,0.00027945,5]
[381523659,1756247493121,-1430.93,0.00027945,5]
[381523660,1756247493130,-474.34,0.00027945,5]
[381523661,1756247493140,-406.93661172,0.00027945,5]
[381523662,1756247493149,-1081.21,0.00027945,5]
[381523663,1756247493160,-650.96,0.00027945,5]
[381523664,1756247493169,-728.38,0.00027945,5]
[381523665,1756247493179,-400.0,0.00027945,5]
[381523666,1756247493188,-421.92,0.00027945,5]
[381523667,1756247493198,-475.17,0.00027945,5]
[381523668,1756247493207,-699.97,0.00027945,5]
[381523669,1756247493216,-400.0,0.00027945,5]
[381523670,1756247493226,-400.0,0.00027945,5]
[381523671,1756247493235,-400.0,0.00027945,5]
[381523672,1756247493244,-442.06,0.00027945,5]
[381523673,1756247493253,-969.86,0.00027945,5]
[381523674,1756247493263,-1246.16,0.00027945,5]
[381523675,1756247493272,-400.0,0.00027945,5]
[381523676,1756247493282,-693.1,0.00027945,5]
[381523677,1756247493291,-400.0,0.00027945,5]
[381523678,1756247493301,-608.37,0.00027945,5]
[381523679,1756247493310,-715.04,0.00027945,5]
[381523680,1756247493319,-515.86,0.00027945,5]
[381523681,1756247493329,-400.0,0.00027945,5]
[381523682,1756247493339,-5183.76,0.00027945,5]
[381523683,1756247493349,-911.76,0.00027945,5]
[381523684,1756247493358,-782.75,0.00027945,5]
[381523685,1756247493368,-623.35,0.00027945,5]
[381523686,1756247493377,-400.0,0.00027945,5]
[381523687,1756247493387,-824.81,0.00027945,5]
[381523688,1756247493397,-981.74,0.00027945,5]
[381523689,1756247493406,-495.62,0.00027945,5]
[381523690,1756247493417,-687.26,0.00027945,5]
[381523691,1756247493427,-572.71,0.00027945,5]
[381523692,1756247493436,-400.0,0.00027945,5]
[381523693,1756247493446,-622.89,0.00027945,5]
[381523694,1756247493454,-593.65,0.00027945,5]
[381523695,1756247493464,-883.65,0.00027945,5]
[381523696,1756247493473,-797.6,0.00027945,5]
[381523697,1756247493482,-1118.19,0.00027945,5]
[381523698,1756247493492,-409.89,0.00027945,5]
[381523699,1756247493500,-400.0,0.00027945,5]
[381523700,1756247493510,-645.35,0.00027945,5]
[381523701,1756247493519,-400.0,0.00027945,5]
[381523702,1756247493529,-1528.99,0.00027945,5]
[381523703,1756247493538,-400.0,0.00027945,5]
[381523704,1756247493548,-510.73,0.00027945,5]
[381523705,1756247493557,-400.0,0.00027945,5]
[381523706,1756247493565,-400.0,0.00027945,5]
[381523707,1756247493575,-435.15,0.00027945,5]
[381523708,1756247493584,-491.13,0.00027945,5]
[381523709,1756247493593,-400.0,0.00027945,5]
[381523710,1756247493602,-696.97,0.00027945,5]
[381523711,1756247493611,-916.84,0.00027945,5]
[381523712,1756247493621,-1032.76,0.00027945,5]
[381523713,1756247493630,-896.13,0.00027945,5]
[381523714,1756247493639,-400.0,0.00027945,5]
[381523715,1756247493649,-946.35,0.00027945,5]
[381523716,1756247493658,-400.0,0.00027945,5]
[381523717,1756247493667,-862.17,0.00027945,5]
[381523718,1756247493677,-463.47,0.00027945,5]
[381523719,1756247493687,-483.95,0.00027945,5]
[381523720,1756247493696,-400.0,0.00027945,5]
[381523721,1756247493706,-400.0,0.00027945,5]
[381523722,1756247493715,-997.34,0.00027945,5]
[381523723,1756247493725,-428.82,0.00027945,5]
[381523724,1756247493735,-400.0,0.00027945,5]
[381523725,1756247493745,-734.08,0.00027945,5]
[381523726,1756247493754,-840.07,0.00027945,5]
[381523727,1756247493764,-400.0,0.00027945,5]
[381523728,1756247493774,-523.38,0.00027945,5]
[381523729,1756247493783,-400.0,0.00027945,5]
[381523730,1756247493794,-481.87,0.00027945,5]
[381523731,1756247493803,-305.08,0.00027945,5]
[381523732,1756247493812,-493.10999526,0.00027945,5]
[381523733,1756247493822,-787.44,0.00027945,5]
[381523734,1756247493831,-709.87,0.00027945,5]
[381523735,1756247493841,-400.0,0.00027945,5]
[381523736,1756247493850,-400.0,0.00027945,5]
[381523737,1756247493860,-697.83,0.00027945,5]
[381523738,1756247493869,-400.0,0.00027945,5]
[381523739,1756247493879,-1050.98,0.00027945,5]
[381523740,1756247493888,-1003.32,0.00027945,5]
[381523741,1756247493897,-1070.87,0.00027945,5]
[381523742,1756247493906,-694.78,0.00027945,5]
[381523743,1756247493916,-400.0,0.00027945,5]
[381523744,1756247493925,-522.07,0.00027945,5]
[381523745,1756247493935,-514.28,0.00027945,5]
[381523746,1756247493944,-646.92,0.00027945,5]
[381523747,1756247493954,-1000.81,0.00027945,5]
[381523748,1756247493964,-596.48,0.00027945,5]
[381523749,1756247493974,-705.89,0.00027945,5]
[381523750,1756247493983,-936.56,0.00027945,5]
[381523751,1756247493993,-400.0,0.00027945,5]
[381523752,1756247494003,-400.0,0.00027945,5]
[381523753,1756247494012,-881.27,0.00027945,5]
[381523754,1756247494022,-3901.4,0.00027945,5]
[381523755,1756247494031,-400.0,0.00027945,5]
[381523756,1756247494041,-400.0,0.00027945,5]
[381523757,1756247494051,-400.0,0.00027945,5]
[381523758,1756247494061,-580.1,0.00027945,5]
[381523759,1756247494071,-935.93,0.00027945,5]
[381523760,1756247494082,-400.0,0.00027945,5]
[381523761,1756247494092,-400.0,0.00027945,5]
[381523762,1756247494103,-942.64,0.00027945,5]
[381523763,1756247494113,-899.5,0.00027945,5]
[381523764,1756247494123,-400.0,0.00027945,5]
[381523765,1756247494133,-547.55,0.00027945,5]
[381523766,1756247494144,-682.28,0.00027945,5]
[381523767,1756247494155,-639.36,0.00027945,5]
[381523768,1756247494166,-465.82,0.00027945,5]
[381523769,1756247494175,-1012.44,0.00027945,5]
[381523770,1756247494186,-400.0,0.00027945,5]
[381523771,1756247494197,-400.0,0.00027945,5]
[381523772,1756247494207,-912.63,0.00027945,5]
[381523773,1756247494217,-523.2,0.00027945,5]
[381523774,1756247494227,-400.0,0.00027945,5]
[381523775,1756247494238,-719.54,0.00027945,5]
[381523776,1756247494247,-400.0,0.00027945,5]
[381523777,1756247494257,-472.41,0.00027945,5]
[381523778,1756247494267,-400.0,0.00027945,5]
[381523779,1756247494277,-400.0,0.00027945,5]
[381523780,1756247494287,-1229.64,0.00027945,5]
[381523781,1756247494297,-984.75,0.00027945,5]
[381523782,1756247494306,-860.61,0.00027945,5]
[381523783,1756247494316,-687.38,0.00027945,5]
[381523784,1756247494325,-400.0,0.00027945,5]
[381523785,1756247494334,-607.0,0.00027945,5]
[381523786,1756247494345,-668.89,0.00027945,5]
[381523787,1756247494357,-484.98,0.00027945,5]
[381523788,1756247494366,-808.19,0.00027945,5]
[381523789,1756247494375,-1041.94,0.00027945,5]
[381523790,1756247494384,-569.53,0.00027945,5]
[381523791,1756247494394,-1133.42,0.00027945,5]
[381523792,1756247494404,-744.15,0.00027945,5]
[381523793,1756247494415,-400.0,0.00027945,5]
[381523794,1756247494425,-549.03,0.00027945,5]
[381523795,1756247494433,-1040.29,0.00027945,5]
[381523796,1756247494442,-400.0,0.00027945,5]
[381523797,1756247494452,-849.58,0.00027945,5]
[381523798,1756247494461,-400.0,0.00027945,5]
[381523799,1756247494470,-683.71,0.00027945,5]
[381523800,1756247494480,-508.36,0.00027945,5]
[381523801,1756247494489,-400.0,0.00027945,5]
[381523802,1756247494498,-581.8,0.00027945,5]
[381523803,1756247494508,-739.83,0.00027945,5]
[381523804,1756247494518,-626.47,0.00027945,5]
[381523805,1756247494528,-400.0,0.00027945,5]
[381523806,1756247494538,-521.98,0.00027945,5]
[381523807,1756247494547,-863.64,0.00027945,5]
[381523808,1756247494562,-668.6,0.00027945,5]
[381523809,1756247494571,-400.0,0.00027945,5]
[381523810,1756247494581,-576.45,0.00027945,5]
[381523811,1756247494590,-400.0,0.00027945,5]
[381523812,1756247494600,-788.2,0.00027945,5]
[381523813,1756247494609,-3656.63,0.00027945,5]
[381523814,1756247494619,-562.45,0.00027945,5]
[381523815,1756247494629,-400.0,0.00027945,5]
[381523816,1756247494638,-605.45,0.00027945,5]
[381523817,1756247494648,-680.67,0.00027945,5]
[381523818,1756247494657,-864.46,0.00027945,5]
[381523819,1756247494667,-495.09,0.00027945,5]
[381523820,1756247494676,-809.79,0.00027945,5]
[381523821,1756247494686,-1579.41,0.00027945,5]
[381523822,1756247494696,-688.26,0.00027945,5]
[381523823,1756247494706,-731.76,0.00027945,5]
[381523824,1756247494716,-400.0,0.00027945,5]
[381523825,1756247494726,-424.13,0.00027945,5]
[381523826,1756247494735,-614.46,0.00027945,5]
[381523827,1756247494745,-1106.29,0.00027945,5]
[381523828,1756247494755,-1332.63,0.00027945,5]
[381523829,1756247494764,-893.01,0.00027945,5]
[381523830,1756247494773,-518.54,0.00027945,5]
[381523831,1756247494782,-510.64,0.00027945,5]
[381523832,1756247494792,-788.58,0.00027945,5]
[381523833,1756247494801,-400.0,0.00027945,5]
[381523834,1756247494810,-1097.28,0.00027945,5]
[381523835,1756247494820,-400.0,0.00027945,5]
[381523836,1756247494829,-839.92,0.00027945,5]
[381523837,1756247494838,-400.0,0.00027945,5]
[381523838,1756247494848,-426.78,0.00027945,5]
[381523839,1756247494858,-450.0,0.00027945,5]
[381523840,1756247494867,-860.28,0.00027945,5]
[381523841,1756247494877,-420.85,0.00027945,5]
[381523842,1756247494887,-400.0,0.00027945,5]
[381523843,1756247494896,-348.09993185,0.00027945,5]
[381523844,1756247494906,-762.7,0.00027945,5]
[381523845,1756247494916,-400.0,0.00027945,5]
[381523846,1756247494926,-1641.19,0.00027945,5]
[381523847,1756247494935,-304.00449079,0.00027945,5]
[381523848,1756247495674,-352.54550921,0.00027945,5]
[381523849,1756247495684,-429.04,0.00027945,5]
[381523850,1756247495694,-400.0,0.00027945,5]
[381523851,1756247495703,-485.97,0.00027945,5]
[381523852,1756247495713,-978.26,0.00027945,5]
[381523853,1756247495722,-400.0,0.00027945,5]
[381523854,1756247495731,-55.7497008,0.00027945,5]
[381523855,1756247495750,-436.3202992,0.00027945,5]
[381523856,1756247495759,-822.36,0.00027945,5]
[381523857,1756247495768,-1276.38,0.00027945,5]
[381523858,1756247495777,-1158.05,0.00027945,5]
[381523859,1756247495786,-1725.54,0.00027945,5]
[381523860,1756247495794,-497.75,0.00027945,5]
[381523861,1756247495803,-622.78,0.00027945,5]
[381523862,1756247495812,-1033.45,0.00027945,5]
[381523863,1756247495822,-636.82,0.00027945,5]
[381523864,1756247495831,-454.11,0.00027945,5]
[381523865,1756247495839,-1131.45,0.00027945,5]
[381523866,1756247495849,-427.76,0.00027945,5]
[381523867,1756247495858,-535.61619319,0.00027945,5]
[381523868,1756247495867,-218.88932402,0.00027945,5]
[381523869,1756247495891,-945.92067598,0.00027945,5]
[381523870,1756247495900,-684.67,0.00027945,5]
[381523871,1756247495910,-860.8766121,0.00027945,5]
[381523872,1756247495923,-79.1633879,0.00027945,5]
[381523873,1756247495932,-720.31,0.00027945,5]
[381523874,1756247495942,-518.71661244,0.00027945,5]
[381523875,1756247495986,-647.76338756,0.00027945,5]
[381523876,1756247495995,-438.38,0.00027945,5]
[381523877,1756247496006,-180.0,0.00027945,5]
[381523878,1756247496015,-534.75,0.00027945,5]
[381523879,1756247496026,-400.0,0.00027945,5]
[381523880,1756247496035,-771.72,0.00027945,5]
[381523881,1756247496045,-400.0,0.00027945,5]
[381523882,1756247496055,-400.0,0.00027945,5]
[381523883,1756247496064,-751.99,0.00027945,5]
[381523884,1756247496073,-2299.71,0.00027945,5]
[381523885,1756247496082,-400.0,0.00027945,5]
[381523886,1756247496092,-908.15,0.00027945,5]
[381523887,1756247496101,-400.0,0.00027945,5]
[381523888,1756247496207,-851.95,0.00027945,5]
[381523889,1756247496256,-585.93,0.00027945,5]
[381523890,1756247496265,-694.98,0.00027945,5]
[381523891,1756247496274,-780.56,0.00027945,5]
[381523892,1756247496283,-400.0,0.00027945,5]
[381523893,1756247496292,-400.0,0.00027945,5]
[381523894,1756247496302,-400.0,0.00027945,5]
[381523895,1756247496312,-635.89,0.00027945,5]
[381523896,1756247496323,-400.0,0.00027945,5]
[381523897,1756247496333,-400.0,0.00027945,5]
[381523898,1756247496342,-3069.65,0.00027945,5]
[381523899,1756247496354,-946.54,0.00027945,5]
[381523900,1756247496364,-524.12,0.00027945,5]
[381523901,1756247496373,-400.0,0.00027945,5]
[381523902,1756247496382,-506.1,0.00027945,5]
[381523903,1756247496392,-400.0,0.00027945,5]
[381523904,1756247496401,-400.0,0.00027945,5]
[381523905,1756247496410,-400.0,0.00027945,5]
[381523906,1756247496420,-1293.95,0.00027945,5]
[381523907,1756247496430,-212.24661249,0.00027945,5]
[381523928,1756247813022,250.0,0.00015,2]
[381523951,1756248326362,184.25,0.00025294,120]
[381524012,1756248632391,-204.0,0.00019951,2]
[381524013,1756248632401,-300.0,0.00019951,2]
[381524014,1756248632411,-204.0,0.00020167,2]
[381524016,1756248632420,-159.6,0.00020383,2]
[381524017,1756248632430,-204.0,0.00021117,2]
[381524018,1756248632440,-250.0,0.00021216,2]
[381524019,1756248632449,-204.0,0.0002147,2]
[381524020,1756248632459,-500.0,0.0002147,2]
[381524021,1756248632469,-300.0,0.0002147,2]
[381524022,1756248632479,-250.0,0.00021946,2]
[381524023,1756248632489,-204.0,0.00021946,2]
[381524024,1756248632499,-300.0,0.00021946,2]
[381524025,1756248632509,-250.0,0.00021946,2]
[381524026,1756248632519,-220.0,0.00023244,2]
[381524027,1756248632528,-1200.0,0.00023244,2]
[381524028,1756248632538,-300.0,0.00023244,2]
[381524029,1756248632547,-212.18043798,0.00023245,2]
[381524030,1756248632556,-844.63891918,0.00023245,2]
[381524031,1756248632566,-160.0,0.00023245,2]
[381524032,1756248632576,-257.91778498,0.00024821,2]
[381524033,1756248632585,-4668.66285786,0.000249,2]
[381524034,1756248632604,-813.75081055,0.000249,2]
[381524035,1756248632616,-353.87499997,0.000249,2]
[381524036,1756248632635,-3357.47253602,0.000249,2]
[381524037,1756248632647,-3080.03560016,0.000249,2]
[381524038,1756248632656,-295.64937715,0.00025118,2]
[381524039,1756248632667,-158.73020086,0.00025274,2]
[381524040,1756248632680,-451.26979914,0.00025274,2]
[381524041,1756248632791,-160.0,0.00025425,7]
[381524042,1756248632801,-2280.40663526,0.00025479,2]
[381524062,1756248641143,-161.6,0.00025305,2]
[381524063,1756248641153,-2719.59336474,0.00025479,2]
[381524064,1756248641162,-250.0,0.00025517,2]
[381524065,1756248641171,-330.42379523,0.00025596,2]
[381524066,1756248641511,-219.57620477,0.00025596,2]
[381524067,1756248641521,-844.63891918,0.00025597,3]
[381524068,1756248641531,-160.0,0.00025597,3]
[381524069,1756248641540,-12273.79680438,0.00025597,3]
[381524070,1756248641549,-200.0,0.00025599,2]
[381524071,1756248641559,-657.61,0.00025684,2]
[381524072,1756248641568,-510.0,0.00025767,2]
[381524073,1756248641578,-475.08750861,0.00025824,2]
[381524074,1756248641587,-334.5472959,0.00025824,2]
[381524075,1756248641596,-1256.0,0.0002584,2]
[381524076,1756248641606,-3374.0,0.0002584,2]
[381524077,1756248641615,-2031.0,0.0002584,2]
[381524078,1756248641624,-926.0,0.0002584,2]
[381524079,1756248641633,-1298.0,0.0002584,2]
[381524080,1756248641643,-599.0,0.0002584,2]
[381524081,1756248641652,-566.0,0.0002584,2]
[381524082,1756248641661,-1658.0,0.0002584,2]
[381524083,1756248641670,-6146.0,0.0002584,2]
[381524084,1756248641683,-4155.0,0.0002584,2]
[381524085,1756248641692,-718.0,0.0002584,2]
[381524086,1756248641702,-21104.0,0.0002584,2]
[381524087,1756248641711,-150.0,0.0002584,2]
[381524088,1756248641721,-377.00371759,0.00026052,2]
[381524089,1756248641730,-267.46074303,0.0002619,2]
[381524090,1756248641740,-12273.79680438,0.00026293,5]
[381524091,1756248641749,-2312.267,0.00026368,13]
[381524092,1756248641759,-176.194,0.00026368,13]
[381524093,1756248641768,-774.64,0.000264,2]
[381524094,1756248641777,-1217.26,0.00026451,2]
[381524095,1756248641788,-408.0,0.000266,2]
[381524096,1756248641797,-469.3,0.00026848,2]
[381524097,1756248641806,-753.39463,0.000269,2]
[381524098,1756248641816,-12273.79680438,0.0002699,6]
[381524099,1756248641825,-158.0,0.00027,7]
[381524100,1756248641835,-154.0,0.00027,7]
[381524101,1756248641844,-1702.75536468,0.00027106,2]
[381524102,1756248641854,-200.0,0.00027243,2]
[381524103,1756248641863,-895.52261073,0.00027286,12]
[381524104,1756248641873,-563.22812657,0.00027287,2]
[381524105,1756248641882,-168.66258052,0.00027287,2]
[381524106,1756248641891,-167.38057004,0.00027287,2]
[381524107,1756248641900,-5000.0,0.00027297,2]
[381524108,1756248641909,-500.0,0.00027356,2]
[381524109,1756248641918,-238.23152491,0.00027356,2]
[381524110,1756248641927,-530.20628755,0.00027356,2]
[381524111,1756248641936,-375.14733255,0.00027356,2]
[381524112,1756248641945,-500.0,0.00027356,2]
[381524113,1756248641954,-500.0,0.00027356,2]
[381524114,1756248641964,-900.0,0.00027357,10]
[381524115,1756248641975,-900.0,0.00027357,10]
[381524116,1756248641984,-900.0,0.00027357,10]
[381524117,1756248641993,-900.0,0.00027357,10]
[381524118,1756248642003,-900.0,0.00027357,10]
[381524119,1756248642012,-900.0,0.00027357,10]
[381524120,1756248642021,-900.0,0.00027357,10]
[381524121,1756248642031,-900.0,0.00027357,10]
[381524122,1756248642041,-98396.7508389,0.00027377,2]
[381524123,1756248642051,-746.34,0.00027377,2]
[381524124,1756248642061,-746.34,0.00027377,2]
[381524125,1756248642070,-258.11635352,0.00027386,2]
[381524126,1756248642079,-500.0,0.00027386,2]
[381524127,1756248642088,-181.20743732,0.00027386,2]
[381524128,1756248642098,-493.50880417,0.00027386,2]
[381524129,1756248642107,-177135.75537781,0.00027387,2]
[381524135,1756248643774,-281.03,0.00027387,2]
[381524137,1756248643818,-290.96510099,0.00027387,2]
[381524141,1756248646380,-5039.32478359,0.00027387,2]
[381524142,1756248646425,-698.17226534,0.00027387,2]
[381524184,1756248746524,210.76,0.00013699,2]
[381524278,1756249274237,217.11,0.00025752,120]
[381524306,1756249615307,250.0,0.00015,2]
[381524318,1756249769264,214.15,0.00013699,2]
[381524327,1756249831499,-214.15,0.00020187,2]
[381524328,1756249831509,-117.34609331,0.00020321,2]
[381524329,1756249831653,-132.65390669,0.00020321,2]
[381524330,1756249831662,-204.0,0.00020321,2]
[381524331,1756249831672,-159.6,0.00020455,2]
[381524332,1756249831681,-150.0,0.00022206,2]
[381524333,1756249831691,-250.0,0.00022206,2]
[381524334,1756249831701,-204.0,0.00022206,2]
[381524335,1756249831710,-204.0,0.00022206,2]
[381524336,1756249831720,-204.0,0.00022323,2]
[381524337,1756249831729,-500.0,0.00023041,2]